fUSD/lending_fUSD_20250225
["ID","MTS","AMOUNT","RATE_DAILY","PERIOD"]
[354395167,1740469832645,-294.17769,0.00025688,30]
[354395168,1740469832655,-294.17769,0.00026088,30]
[354395169,1740469832665,-200.0,0.00026104,2]
[354395170,1740469832677,-328.85,0.00026286,2]
[354395171,1740469832686,-294.17769,0.00026288,30]
[354395172,1740469832695,-294.17769,0.00026488,30]
[354395173,1740469832705,-261.55,0.00026589,2]
[354395174,1740469832716,-294.17769,0.00026688,30]
[354395175,1740469832726,-261.55,0.00026799,2]
[354395176,1740469832736,-200.0,0.00026881,2]
[354395177,1740469832746,-294.17769,0.00026888,30]
[354395178,1740469832756,-700.0,0.00027,2]
[354395179,1740469832766,-261.55,0.00027008,2]
[354395180,1740469832775,-294.17769,0.00027088,30]
[354395181,1740469832785,-261.55,0.00027218,2]
[354395182,1740469832795,-294.17769,0.00027288,30]
[354395183,1740469832805,-250.0,0.00027322,2]
[354395184,1740469832815,-261.55,0.00027428,2]
[354395185,1740469832825,-294.17769,0.00027488,30]
[354395186,1740469832835,-261.55,0.00027638,2]
[354395187,1740469832844,-294.17769,0.00027688,30]
[354395188,1740469832854,-834.788,0.00027793,2]
[354395189,1740469832863,-603.0,0.00027793,2]
[354395190,1740469832873,-150.0,0.00027793,2]
[354395191,1740469832883,-3917.0,0.00027793,2]
[354395192,1740469832893,-193.34,0.00027803,2]
[354395193,1740469832902,-261.55,0.00027848,2]
[354395194,1740469832912,-294.17769,0.00027888,30]
[354395195,1740469832924,-261.55,0.00028058,2]
[354395196,1740469832933,-294.17769,0.00028088,30]
[354395197,1740469832943,-1000.0,0.00028118,2]
[354395198,1740469832953,-300.0,0.00028176,2]
[354395199,1740469832962,-261.55,0.00028268,2]
[354395200,1740469832972,-3984.98,0.00028268,2]
[354395201,1740469832981,-200.0,0.0002828,2]
[354395202,1740469832991,-294.17769,0.00028288,30]
[354395203,1740469833000,-261.55,0.00028478,2]
[354395204,1740469833009,-294.17769,0.00028488,30]
[354395205,1740469833019,-328.85,0.0002855,2]
[354395206,1740469833029,-160.07,0.00028608,2]
[354395207,1740469833039,-261.55,0.00028688,2]
[354395208,1740469833049,-294.17769,0.00028688,30]
[354395209,1740469833059,-200.0,0.00028714,2]
[354395210,1740469833068,-294.17769,0.00028888,30]
[354395211,1740469833078,-261.55,0.00028898,2]
[354395212,1740469833088,-750.0,0.00029,2]
[354395213,1740469833098,-261.55,0.00029108,2]
[354395214,1740469833107,-261.55,0.00029318,2]
[354395215,1740469833117,-261.55,0.00029527,2]
[354395216,1740469833127,-661.85,0.0002971,3]
[354395217,1740469833137,-500.0,0.0002972,2]
[354395218,1740469833147,-150.0,0.0002972,2]
[354395219,1740469833157,-261.55,0.00029737,2]
[354395220,1740469833167,-261.55,0.00029947,2]
[354395221,1740469833180,-309.97,0.0003,2]
[354395222,1740469833190,-261.55,0.00030157,2]
[354395223,1740469833200,-261.55,0.00030367,2]
[354395224,1740469833209,-261.55,0.00030577,2]
[354395225,1740469833220,-625.60444822,0.0003069,2]
[354395226,1740469833229,-328.85,0.00030814,2]
[354395227,1740469833239,-1000.0,0.00031243,2]
[354395228,1740469833249,-2280.7042125,0.00031265,2]
[354395229,1740469833260,-929.91,0.000315,7]
[354395230,1740469833270,-1231.31324835,0.00031598,2]
[354395231,1740469833279,-313.0516,0.00031681,2]
[354395232,1740469833289,-3549.5166,0.00031681,2]
[354395233,1740469833298,-3883.9352,0.00031681,2]
[354395234,1740469833308,-2322.538,0.00031681,2]
[354395235,1740469833318,-198.09239023,0.00031681,30]
[354395236,1740469833327,-344.67242811,0.00031781,30]
[354395237,1740469833337,-500.0,0.000318,13]
[354395238,1740469833347,-500.0,0.000318,13]
[354395239,1740469833357,-500.0,0.000318,13]
[354395240,1740469833367,-500.0,0.000318,13]
[354395241,1740469833377,-500.0,0.000318,13]
[354395242,1740469833387,-500.0,0.000318,13]
[354395243,1740469833398,-526.0,0.000318,13]
[354395244,1740469833410,-11421.9204,0.00032507,2]
[354395245,1740469833426,-23900.0,0.00032607,2]
[354395246,1740469833437,-358.79649773,0.00032862,2]
[354395247,1740469833449,-328.85,0.00033078,2]
[354395248,1740469833459,-774.92,0.000331,14]
[354395249,1740469833470,-160.07,0.0003333,2]
[354395250,1740469833481,-1007.95484462,0.00033421,5]
[354395251,1740469833491,-612.37,0.00034276,2]
[354395252,1740469833503,-1000.0,0.00034367,2]
[354395253,1740469833515,-160.97,0.00034411,2]
[354395254,1740469833526,-150.0,0.00034548,10]
[354395255,1740469833536,-594.93,0.00034677,2]
[354395256,1740469833547,-2555.3642,0.00034764,2]
[354395257,1740469833557,-328.85,0.00035342,2]
[354395258,1740469833567,-510.80629541,0.0003563,20]
[354395259,1740469833578,-1570.9419,0.00036484,2]
[354395260,1740469833588,-156.12572956,0.00036501,2]
[354395261,1740469833598,-1237.0501,0.00036546,2]
[354395262,1740469833609,-3202.64402488,0.00036573,120]
[354395263,1740469833620,-3494.16309156,0.00036574,3]
[354395264,1740469833630,-3147.1758826,0.00036574,2]
[354395265,1740469833640,-347.36,0.00036576,30]
[354395266,1740469833651,-313.71295706,0.00036576,2]
[354395267,1740469833661,-570.12446729,0.00036577,120]
[354395268,1740469833672,-170574.2832,0.00036584,2]
[354395269,1740469833683,-3858.67838594,0.00036601,120]
[354395270,1740469833693,-770.12446729,0.00036601,120]
[354395271,1740469833702,-1747.08154578,0.00036636,3]
[354395272,1740469833713,-8735.4077289,0.00036641,3]
[354395273,1740469833722,-421.49077398,0.00036645,120]
[354395274,1740469833732,-5907.16149268,0.00036646,120]
[354395275,1740469833742,-28931.97814239,0.00036651,120]
[354395276,1740469833752,-6988.32618312,0.00036665,3]
[354395277,1740469833762,-1747.08154578,0.00036674,3]
[354395278,1740469833772,-28931.97814239,0.00036675,120]
[354395279,1740469833781,-1747.08154578,0.00036676,3]
[354395280,1740469833791,-5907.16149268,0.00036684,120]
[354395281,1740469833801,-5907.16149268,0.00036686,120]
[354395282,1740469833811,-200.0,0.000367,120]
[354395283,1740469833821,-200.0,0.00036707,120]
[354395284,1740469833831,-421.49077398,0.00036708,120]
[354395285,1740469833841,-1747.08154578,0.0003673,3]
[354395286,1740469833851,-3202.64402488,0.0003674,120]
[354395287,1740469833861,-1747.08154578,0.00036748,3]
[354395288,1740469833873,-421.49077398,0.00036749,120]
[354395289,1740469833883,-3202.64402488,0.00036754,120]
[354395290,1740469833893,-3202.64402488,0.00036758,120]
[354395291,1740469833904,-6988.32618312,0.00036765,3]
[354395292,1740469833914,-28931.97814239,0.00036775,120]
[354395293,1740469833926,-8735.4077289,0.0003678,3]
[354395294,1740469833936,-770.12446729,0.00036789,120]
[354395295,1740469833947,-28931.97814239,0.0003679,120]
[354395296,1740469833957,-770.12446729,0.00036792,120]
[354395297,1740469833967,-1934.0,0.00036986,5]
[354395298,1740469833978,-1000.0,0.00036986,59]
[354395299,1740469833988,-625.60444822,0.00036993,2]
[354395300,1740469833998,-3494.16309156,0.00037088,3]
[354395301,1740469834009,-220.74,0.00037129,120]
[354395302,1740469834019,-776.29095293,0.0003726,59]
[354395303,1740469834030,-1747.08154578,0.00037481,3]
[354395304,1740469834040,-1000.0,0.00037491,2]
[354395305,1740469834050,-328.85,0.00037606,2]
[354395306,1740469834060,-1747.08154578,0.00037956,3]
[354395307,1740469834069,-150.0,0.00037961,7]
[354395308,1740469834080,-1000.0,0.00037966,14]
[354395309,1740469834091,-1000.0,0.00037966,14]
[354395310,1740469834101,-1000.0,0.00037966,14]
[354395311,1740469834110,-1000.0,0.00037966,14]
[354395312,1740469834120,-1000.0,0.00037966,14]
[354395313,1740469834129,-1000.0,0.00037966,14]
[354395314,1740469834139,-1000.0,0.00037966,14]
[354395315,1740469834149,-1000.0,0.00037966,14]
[354395316,1740469834159,-1000.0,0.00037966,14]
[354395317,1740469834168,-868.4582257,0.00037966,14]
[354395318,1740469834180,-3147.17588252,0.00038336,2]
[354395319,1740469834191,-156.34424983,0.000388,120]
[354395320,1740469834201,-162.44,0.00038911,120]
[354395321,1740469834212,-313.71295702,0.00039296,2]
[354395322,1740469834221,-156.34424983,0.00039377,120]
[354395323,1740469834231,-152.39,0.000397,31]
[354395324,1740469834241,-152.39,0.000397,31]
[354395325,1740469834251,-328.85,0.00039869,2]
[354395326,1740469834260,-162.0,0.0004,26]
[354395327,1740469834270,-150.0,0.0004,120]
[354395328,1740469834280,-3147.17588252,0.00040098,15]
[354395329,1740469834290,-220.74,0.00040505,120]
[354395330,1740469834299,-1879.849,0.0004063,58]
[354395331,1740469834309,-193.34,0.00041704,2]
[354395332,1740469834319,-3147.17588252,0.0004186,15]
[354395333,1740469834328,-313.71295702,0.00042017,2]
[354395334,1740469834338,-328.85,0.00042133,2]
[354395335,1740469834348,-156.34424983,0.0004228,120]
[354395336,1740469834358,-625.60444822,0.00043295,12]
[354395337,1740469834367,-219.43795707,0.00043425,30]
[354395338,1740469834377,-3147.17588252,0.00043622,15]
[354395339,1740469834387,-219.43795707,0.00044,30]
[354395340,1740469834401,-162.44,0.00044366,120]
[354395341,1740469834411,-328.85,0.00044397,2]
[354395342,1740469834423,-500.0,0.00044411,2]
[354395343,1740469834434,-500.0,0.00044575,2]
[354395344,1740469834446,-313.71295702,0.00044737,2]
[354395345,1740469834455,-156.34424983,0.00045183,120]
[354395346,1740469834466,-3147.17588252,0.00045384,15]
[354395347,1740469834476,-150.0,0.00045589,10]
[354395348,1740469834487,-156.12572956,0.00045701,28]
[354395349,1740469834497,-328.85,0.00046661,2]
[354395350,1740469834507,-3147.17588252,0.00047146,15]
[354395351,1740469834517,-160.97,0.00047233,2]
[354395352,1740469834527,-313.71295702,0.00047457,2]
[354395353,1740469834537,-619.94,0.000476,30]
[354395354,1740469834547,-3000.0,0.00048,2]
[354395355,1740469834558,-156.34424983,0.00048086,120]
[354395356,1740469834568,-7500.0,0.00048689,120]
[354395357,1740469834578,-3753.55546809,0.00048757,4]
[354395358,1740469834588,-899.3,0.00048767,30]
[354395359,1740469834597,-899.3,0.00048767,30]
[354395360,1740469834608,-899.3,0.00048767,30]
[354395361,1740469834618,-899.3,0.00048767,30]
[354395362,1740469834627,-30028.4437447,0.00048779,4]
[354395363,1740469834638,-2000.0,0.00048789,120]
[354395364,1740469834648,-1000.0,0.00048789,2]
[354395365,1740469834658,-6547.0194,0.00048789,2]
[354395366,1740469834668,-3465.4807,0.00048789,2]
[354395367,1740469834677,-67269.29990665,0.00048789,2]
[354395368,1740469834783,-2861.90774824,0.00048789,2]
[354395369,1740469834795,-15665.07634511,0.00048789,2]
[354395370,1740469835145,-4193.01151415,0.00048789,2]
[354395371,1740469835156,-620.18318585,0.00048789,2]
[354395372,1740469835166,-3753.55546809,0.0004889,4]
[354395373,1740469835175,-300.0,0.000489,17]
[354395374,1740469835185,-3147.17588252,0.00048908,15]
[354395375,1740469835194,-328.85,0.00048925,2]
[354395376,1740469835203,-858.64493586,0.00049041,30]
[354395377,1740469835218,-40.65506414,0.00049041,30]
[354395378,1740469835228,-899.3,0.00049041,30]
[354395379,1740469835237,-150.0,0.00049044,120]
[354395380,1740469835247,-529.86313586,0.0004929,4]
[354395381,1740469835259,-14484.35873654,0.0004929,4]
[354395382,1740469835269,-3753.55546809,0.00049305,4]
[354395383,1740469835278,-899.3,0.00049315,60]
[354395384,1740469835287,-899.3,0.00049315,60]
[354395385,1740469835297,-899.3,0.00049589,60]
[354395386,1740469835306,-899.3,0.00049589,60]
[354395387,1740469835315,-625.60444822,0.00049598,23]
[354395388,1740469835324,-700.0,0.000497,18]
[354395389,1740469835338,-1000.0,0.000498,18]
[354395390,1740469835348,-162.44,0.00049821,120]
[354395391,1740469835358,-899.3,0.00049863,60]
[354395392,1740469835368,-899.3,0.00049863,60]
[354395393,1740469835377,-195.63627511,0.00049899,26]
[354395394,1740469835387,-1400.0,0.000499,18]
[354395395,1740469835399,-55555.0,0.000499,120]
[354395396,1740469835409,-11260.6664043,0.0004998,4]
[354395397,1740469835421,-120113.774979,0.0004999,4]
[354395398,1740469835431,-183.7630986,0.0004999,7]
[354395399,1740469835441,-150.25,0.0004999,120]
[354395400,1740469835451,-150.25,0.0004999,120]
[354395401,1740469835461,-150.25,0.0004999,120]
[354395402,1740469835470,-150.25,0.0004999,120]
[354395403,1740469835480,-150.25,0.0004999,120]
[354395404,1740469835491,-150.25,0.0004999,120]
[354395405,1740469835502,-500.0,0.00049999,120]
[354395406,1740469835511,-539.0396436,0.00049999,120]
[354395407,1740469835521,-500.0,0.00049999,120]
[354395408,1740469835530,-500.0,0.00049999,120]
[354395409,1740469835540,-500.0,0.00049999,120]
[354395410,1740469835550,-500.0,0.00049999,120]
[354395411,1740469835559,-500.0,0.00049999,120]
[354395412,1740469835568,-1037.86,0.00049999,120]
[354395413,1740469835579,-500.0,0.00049999,120]
[354395414,1740469835589,-492.27589477,0.00049999,120]
[354395415,1740469835598,-500.0,0.00049999,120]
[354395416,1740469835608,-488.78809907,0.00049999,120]
[354395417,1740469835617,-500.0,0.00049999,120]
[354395418,1740469835627,-500.0,0.00049999,120]
[354395419,1740469835637,-500.0,0.00049999,120]
[354395420,1740469835646,-495.03892683,0.00049999,120]
[354395421,1740469835656,-513.79244853,0.00049999,120]
[354395422,1740469835666,-500.0,0.00049999,120]
[354395423,1740469835677,-500.0,0.00049999,120]
[354395424,1740469835686,-500.0,0.00049999,120]
[354395425,1740469835697,-500.0,0.00049999,120]
[354395426,1740469835711,-58643.82223209,0.0005,120]
[354395427,1740469835723,-13771.15471654,0.0005,120]
[354395428,1740469835735,-45509.99999999,0.0005,120]
[354395429,1740469835747,-11162.57128165,0.0005,120]
[354395430,1740469835759,-1618.07514123,0.0005,120]
[354395431,1740469835770,-5743.36885025,0.0005,120]
[354395432,1740469835782,-269.99165375,0.0005,120]
[354395433,1740469835885,-654.40320571,0.0005,120]
[354395459,1740469837702,-1111.0,0.00027793,2]
[354395460,1740469837712,-368.116,0.00030793,2]
[354395461,1740469837724,-150.0,0.00048789,30]
[354395462,1740469837734,-7319.7239,0.0005,120]
[354395463,1740469837746,-90036.00000005,0.0005,120]
[354395464,1740469837758,-1997.49105376,0.0005,120]
[354395465,1740469837770,-3842.19037028,0.0005,120]
[354395466,1740469837844,-415.3400008,0.0005,120]
[354395467,1740469837856,-1540.78484843,0.0005,120]
[354395468,1740469837868,-76940.19182847,0.0005,120]
[354395469,1740469837996,-28024.13906505,0.0005,120]
[354395470,1740469838008,-8971.70534765,0.0005,120]
[354395471,1740469838020,-10787.51896494,0.0005,120]
[354395472,1740469838033,-6827.17283623,0.0005,120]
[354395473,1740469838047,-434.96707656,0.0005,120]
[354395474,1740469838060,-821.31522246,0.0005,120]
[354395475,1740469838073,-528.41846225,0.0005,120]
[354395625,1740469839928,-7734.10278296,0.0005,120]
[354395660,1740469840253,-1616405.5511589,0.0005,120]
[354395662,1740469840263,-163.77154433,0.00050037,26]
[354395664,1740469840273,-899.3,0.00050137,60]
[354395666,1740469840282,-899.3,0.00050137,60]
[354395668,1740469840292,-313.71295702,0.00050178,2]
[354395670,1740469840301,-899.3,0.00050411,60]
[354395672,1740469840311,-899.3,0.00050411,60]
[354395674,1740469840321,-3147.17588252,0.0005067,15]
[354395676,1740469840331,-899.3,0.00050685,60]
[354395678,1740469840341,-899.3,0.00050685,60]
[354395680,1740469840351,-1700.0,0.000509,18]
[354395682,1740469840361,-899.3,0.00050959,60]
[354395684,1740469840371,-899.3,0.00050959,60]
[354395686,1740469840381,-156.34424983,0.00050989,120]
[354395688,1740469840391,-9072.07110777,0.00050989,2]
[354395690,1740469840401,-183.7630986,0.0005099,7]
[354395692,1740469840411,-150.25,0.0005099,120]
[354395694,1740469840422,-150.25,0.0005099,120]
[354395696,1740469840435,-150.25,0.0005099,120]
[354395698,1740469840445,-150.25,0.0005099,120]
[354395701,1740469840467,-150.25,0.0005099,120]
[354395703,1740469840478,-159.61446505,0.00050994,120]
[354395705,1740469840488,-1184931.72006647,0.00051,120]
[354395707,1740469840501,-15095.55615401,0.00051,120]
[354395709,1740469840513,-13512.22210921,0.00051,120]
[354395711,1740469840525,-1798.87056,0.00051,120]
[354395713,1740469840537,-90188.41927046,0.00051,120]
[354395716,1740469840549,-895.72651627,0.00051,120]
[354395718,1740469840562,-99478.92009504,0.00051,120]
[354395720,1740469840574,-540.432,0.00051,120]
[354395722,1740469840588,-3618.2688594,0.00051,120]
[354395725,1740469840600,-1405.42385921,0.00051,120]
[354395727,1740469840611,-2006.8217125,0.00051,120]
[354395731,1740469840645,-199.57767218,0.00051,120]
[354395733,1740469840656,-2385.8,0.00051,120]
[354395735,1740469840668,-4489.0,0.00051,120]
[354395738,1740469840681,-991.02,0.00051,120]
[354395740,1740469840694,-1606.79669272,0.00051,120]
[354395742,1740469840706,-758.25359583,0.00051,120]
[354395744,1740469840718,-1201.21008804,0.00051,120]
[354395756,1740469840836,-220.42576793,0.00051,120]
[354395758,1740469840849,-900.95005,0.00051,120]
[354395792,1740469841195,-13476.15,0.00051,120]
[354396333,1740469846254,-336.24517157,0.00051,120]
[354396339,1740469846266,-1536.06039528,0.00051,120]
[354396350,1740469846298,-255.8224,0.00051,120]
[354396362,1740469846322,-2085.000018,0.00051,120]
[354396412,1740469846556,-744.76165236,0.00051,120]
[354396415,1740469846581,-2710.8,0.00051,120]
[354396420,1740469846612,-23002.44191078,0.00051,120]
[354396509,1740469847255,-4506.37312257,0.00051,120]
[354396545,1740469847480,-4495.0,0.00051,120]
[354396547,1740469847493,-8399.60795901,0.00051,120]
[354396550,1740469847508,-13479.3,0.00051,120]
[354396552,1740469847522,-2076.83387993,0.00051,120]
[354396555,1740469847539,-898.898,0.00051,120]
[354396557,1740469847552,-7327.54075385,0.00051,120]
[354396559,1740469847566,-99490.1264758,0.00051,120]
[354396983,1740470150694,221.57305964,0.00035,120]
[354396992,1740470402930,-150.0,0.000191,2]
[354396993,1740470755936,150.35,8.767e-05,2]
[354397107,1740471036016,-150.35,0.00015516,2]
[354397108,1740471036026,-150.0,0.00017067,2]
[354397109,1740471036036,-150.0,0.00017308,2]
[354397110,1740471036046,-150.0,0.00018535,2]
[354397111,1740471036057,-198.41112426,0.000191,2]
[354397112,1740471036154,-281.86297198,0.000191,2]
[354397113,1740471036164,-255.0,0.00019499,2]
[354397114,1740471036174,-500.0,0.000195,2]
[354397115,1740471036184,-991.93343584,0.000195,2]
[354397116,1740471036195,-500.0,0.000195,2]
[354397117,1740471036204,-500.0,0.000195,2]
[354397118,1740471036214,-500.0,0.000195,2]
[354397119,1740471036223,-727.13857629,0.000195,2]
[354397120,1740471036233,-500.0,0.000195,2]
[354397121,1740471036242,-500.0,0.000195,2]
[354397122,1740471036251,-500.0,0.000195,2]
[354397123,1740471036260,-500.0,0.000195,2]
[354397124,1740471036270,-625.78029305,0.000195,2]
[354397125,1740471036279,-154.80379321,0.0002115,2]
[354397126,1740471036289,-150.35,0.00022264,2]
[354397127,1740471036300,-150.99,0.00022264,2]
[354397128,1740471036309,-640.85,0.00022264,2]
[354397129,1740471036319,-276.53,0.00022264,2]
[354397130,1740471036330,-500.0,0.00022711,2]
[354397131,1740471036339,-500.0,0.00022711,2]
[354397132,1740471036348,-500.0,0.00022711,2]
[354397133,1740471036360,-500.0,0.00022711,2]
[354397134,1740471036369,-500.0,0.00022711,2]
[354397135,1740471036379,-500.0,0.00022711,2]
[354397136,1740471036388,-500.0,0.00022711,2]
[354397137,1740471036400,-500.0,0.00022711,2]
[354397138,1740471036419,-500.0,0.00022711,2]
[354397139,1740471036430,-500.0,0.00022711,2]
[354397140,1740471036439,-500.0,0.00022711,2]
[354397141,1740471036448,-500.0,0.00022711,2]
[354397142,1740471036458,-500.0,0.00022711,2]
[354397143,1740471036467,-200.0,0.00025,2]
[354397144,1740471036477,-150.35,0.00029012,2]
[354397145,1740471036487,-200.0,0.0003,2]
[354397146,1740471036497,-150.0,0.000303,2]
[354397147,1740471036507,-150.0,0.000318,7]
[354397148,1740471036517,-500.0,0.00032027,2]
[354397149,1740471036527,-500.0,0.00032603,2]
[354397150,1740471036538,-3252.49878889,0.00032987,2]
[354397151,1740471036551,-1959.9999998,0.00032987,2]
[354397152,1740471036563,-479.51103002,0.00032987,2]
[354397153,1740471036580,-2606.509968,0.00032987,2]
[354397155,1740471036608,-849.3640825,0.00032987,2]
[354397157,1740471036620,-14752.11613079,0.00032987,2]
[354397158,1740471036630,-200.0,0.00033,2]
[354397160,1740471036640,-244.12,0.00033029,2]
[354397162,1740471036651,-267.04,0.00033232,2]
[354397164,1740471036662,-164.97,0.000334,14]
[354397166,1740471036672,-150.0,0.0003341,2]
[354397168,1740471036682,-201.02,0.00033501,2]
[354397170,1740471036693,-250.0,0.00033525,2]
[354397172,1740471036703,-625.60444822,0.00034029,2]
[354397174,1740471036714,-200.0,0.00034101,2]
[354397176,1740471036724,-154.66,0.00034129,120]
[354397178,1740471036734,-1655.45834256,0.000342,2]
[354397180,1740471036744,-7078.57,0.0003421,2]
[354397182,1740471036754,-167.1,0.0003432,2]
[354397184,1740471036764,-4025.47,0.00034342,2]
[354397186,1740471036775,-12866.97,0.00034423,2]
[354397188,1740471036786,-1406.0,0.00034561,20]
[354397190,1740471036798,-167.1,0.00034591,2]
[354397191,1740471036808,-167.1,0.00034861,2]
[354397192,1740471036818,-1406.0,0.00034917,20]
[354397193,1740471036828,-165.375,0.00034958,40]
[354397194,1740471036838,-1438.922,0.00034958,40]
[354397195,1740471036849,-197.18,0.00034958,2]
[354397196,1740471036858,-167.1,0.00035132,2]
[354397197,1740471036868,-1406.0,0.00035274,20]
[354397198,1740471036880,-167.1,0.00035403,2]
[354397199,1740471036891,-267.04,0.00035496,2]
[354397200,1740471036902,-920.03,0.00035579,2]
[354397202,1740471036912,-1406.0,0.0003563,20]
[354397204,1740471036922,-433.4260881,0.0003563,20]
[354397207,1740471036931,-167.1,0.00035674,2]
[354397210,1740471036941,-150.35,0.00035761,2]
[354397213,1740471036953,-167.1,0.00035945,2]
[354397216,1740471036963,-1406.0,0.00035986,20]
[354397219,1740471036972,-167.1,0.00036216,2]
[354397222,1740471036982,-1406.0,0.00036343,20]
[354397225,1740471036994,-4193.0115,0.00036384,2]
[354397227,1740471037004,-279.4522,0.00036453,2]
[354397229,1740471037015,-29661.41429032,0.00036484,2]
[354397231,1740471037029,-56134.86970968,0.00036484,2]
[354397233,1740471037040,-167.1,0.00036487,2]
[354397235,1740471037049,-48171.67277629,0.00036553,2]
[354397237,1740471037059,-21031.29820035,0.00036556,120]
[354397239,1740471037068,-21031.29820035,0.00036615,120]
[354397241,1740471037078,-21031.29820035,0.00036617,120]
[354397243,1740471037088,-11686.02373047,0.0003669,120]
[354397246,1740471037100,-9345.27446988,0.0003669,120]
[354397248,1740471037110,-1406.0,0.00036699,20]
[354397250,1740471037120,-167.1,0.00036758,2]
[354397252,1740471037130,-167.1,0.00037029,2]
[354397254,1740471037140,-167.1,0.000373,2]
[354397256,1740471037150,-167.1,0.00037571,2]
[354397258,1740471037162,-164.737,0.00037643,7]
[354397260,1740471037172,-267.04,0.0003776,2]
[354397262,1740471037182,-159.79,0.00037778,120]
[354397263,1740471037194,-167.1,0.00037842,2]
[354397264,1740471037203,-156.0,0.00038,2]
[354397265,1740471037212,-167.1,0.00038113,2]
[354397267,1740471037222,-2000.0,0.00038196,120]
[354397268,1740471037232,-200.0,0.00038244,120]
[354397270,1740471037242,-156.0,0.00038333,2]
[354397272,1740471037252,-167.1,0.00038384,2]
[354397274,1740471037261,-167.1,0.00038654,2]
[354397276,1740471037271,-500.0,0.00038685,2]
[354397277,1740471037280,-156.34424983,0.000388,120]
[354397278,1740471037290,-1000.0,0.00038924,2]
[354397279,1740471037300,-167.1,0.00038925,2]
[354397280,1740471037309,-167.1,0.00039196,2]
[354397281,1740471037319,-167.1,0.00039467,2]
[354397282,1740471037329,-156.0,0.00039962,14]
[354397283,1740471037339,-267.04,0.00040024,2]
[354397284,1740471037349,-613.0,0.00040027,2]
[354397285,1740471037358,-609.15948217,0.00040054,15]
[354397286,1740471037367,-1500.0,0.00040082,2]
[354397287,1740471037377,-999.0,0.00040164,120]
[354397289,1740471037386,-636.49831212,0.00040164,120]
[354397290,1740471037399,-305.94287554,0.00040164,120]
[354397291,1740471037415,-56.55881234,0.00040164,120]
[354397292,1740471037424,-999.0,0.00040164,120]
[354397293,1740471037434,-999.0,0.00040164,120]
[354397294,1740471037443,-1086.62830261,0.00040164,120]
[354397295,1740471037452,-609.15948214,0.00041608,15]
[354397296,1740471037462,-159.79,0.0004187,120]
[354397298,1740471037472,-157.0,0.0004196,90]
[354397299,1740471037482,-2751.0,0.00042236,120]
[354397300,1740471037491,-267.04,0.00042288,2]
[354397301,1740471037501,-150.35,0.00042509,2]
[354397302,1740471037510,-609.15948214,0.00043163,15]
[354397303,1740471037520,-1000.0,0.0004379,2]
[354397305,1740471037530,-183.81392077,0.000444,5]
[354397306,1740471037541,-3599.17640914,0.000444,5]
[354397308,1740471037553,-580.00967009,0.000444,5]
[354397309,1740471037564,-267.04,0.00044551,2]
[354397310,1740471037575,-609.15948214,0.00044717,15]
[354397311,1740471037584,-156.0,0.00044758,90]
[354397312,1740471037594,-159.79,0.00045961,120]
[354397313,1740471037605,-609.15948214,0.00046272,15]
[354397314,1740471037614,-1431.21549141,0.000468,2]
[354397315,1740471037626,-68.78450859,0.000468,2]
[354397316,1740471037636,-150.0,0.000468,2]
[354397317,1740471037648,-267.04,0.00046815,2]
[354397318,1740471037660,-519.37549141,0.00047,120]
[354397320,1740471037672,-1568.00595115,0.00047,120]
[354397323,1740471037694,-7912.61855744,0.00047,120]
[354397324,1740471037703,-156.0,0.00047555,90]
[354397325,1740471037713,-609.15948214,0.00047826,15]